bitfinex/quotes_ETHUSD_20260203
["timestamp","ask_amount","ask_price","bid_price","bid_amount"]
[1770110779204,1.09586639,2281.3,2279.7,16.32467512]
[1770110779523,12.34982044,2281.2,2279.8,1.83403106]
[1770110779731,12.34982044,2281.0,2279.6,1.09665392]
[1770110779906,12.34982044,2281.0,2279.3,0.001]
[1770110780103,12.34982044,2280.8,2279.5,1.09672824]
[1770110780408,12.34982044,2280.8,2279.6,1.09666643]
[1770110780815,12.34982044,2280.8,2279.3,0.001]
[1770110780816,12.94731549,2280.6,2279.3,0.001]
[1770110781045,13.86631549,2280.6,2279.3,0.001]
[1770110783004,1.09625082,2280.5,2279.3,0.001]
[1770110783433,14.04356631,2280.5,2279.3,0.001]
[1770110783619,13.85046385,2280.4,2279.3,0.001]
[1770110783815,1.48566149,2280.3,2279.3,0.001]
[1770110785315,1.09639505,2280.2,2279.3,0.001]
[1770110785915,12.94731549,2280.4,2279.5,0.001]
[1770110786138,1.09633096,2280.4,2279.5,0.001]
[1770110786856,1.09620275,2280.6,2279.5,0.001]
[1770110788241,16.00983337,2280.6,2279.5,0.001]
[1770110789633,16.00984336,2280.6,2279.5,0.001]
[1770110789835,1.09616549,2280.7,2279.5,0.001]
[1770110790144,4.38448981,2280.8,2279.5,0.001]
[1770110790145,1.09613972,2280.8,2279.5,0.001]
[1770110792122,0.0011,2280.9,2279.5,11.93951784]
[1770110792426,0.0011,2281.1,2279.5,11.93951784]
[1770110792624,0.0011,2281.1,2279.7,11.93741784]
[1770110792829,0.0011,2281.1,2279.7,12.85641784]
[1770110793431,0.0011,2281.1,2279.8,13.03400525]
[1770110794561,12.94841549,2281.1,2279.8,1.09658741]
[1770110794913,12.94841549,2281.1,2279.8,4.92658741]
[1770110795149,0.0011,2281.1,2279.9,12.96061155]
[1770110795575,0.0011,2281.1,2280.0,1.09649122]
[1770110798279,12.94841549,2281.1,2280.0,1.09649122]
[1770110798574,12.94841549,2281.1,2279.9,2.11968613]
[1770110798744,12.94841549,2281.1,2279.9,1.09649242]
[1770110799683,0.0011,2280.9,2280.1,0.001]
[1770110802275,0.0011,2281.1,2280.1,0.001]
[1770110802450,0.0011,2281.1,2280.1,11.93731784]
[1770110802651,0.0011,2281.1,2280.2,1.19373178]
[1770110803078,1.09707839,2281.1,2280.2,1.19373178]
[1770110803280,1.09707839,2281.1,2280.1,0.001]
[1770110803454,0.0011,2281.1,2280.1,0.001]
[1770110803656,1.09706515,2281.1,2280.1,0.001]
[1770110803856,0.0011,2281.1,2280.1,0.001]
[1770110806311,12.94841549,2281.1,2280.1,0.001]
[1770110806481,1.29484155,2281.0,2280.1,0.001]
[1770110806681,12.94841549,2281.1,2280.1,0.001]
[1770110807079,0.0011,2281.1,2280.1,0.001]
[1770110808289,12.94731549,2281.0,2280.1,0.001]
[1770110810368,1.09605857,2280.9,2280.1,0.001]
[1770110812265,13.38606127,2280.9,2280.1,0.001]
[1770110812467,1.09710824,2281.1,2280.1,0.001]
[1770110813367,0.0011,2281.1,2280.1,0.001]
[1770110813906,0.0011,2280.9,2280.1,0.001]
[1770110814982,0.0011,2280.9,2280.1,1.09744313]
[1770110816880,0.0011,2280.9,2280.1,0.001]
[1770110817090,0.0011,2280.9,2280.1,0.87835451]
[1770110819021,0.0011,2280.9,2280.2,1.09639505]
[1770110820805,0.0011,2280.9,2280.3,3.83]
[1770110821006,0.0011,2280.9,2280.4,1.09629889]
[1770110823120,0.0011,2280.9,2280.3,3.83]
[1770110823324,12.2911027,2280.9,2280.3,3.83]
[1770110823499,12.2911027,2280.9,2280.3,4.92632449]
[1770110823816,12.2911027,2280.9,2280.3,6.14679667]
[1770110824402,12.2478727,2280.9,2280.3,6.14679667]
[1770110824792,0.0011,2281.1,2280.3,6.14679667]
[1770110824993,0.0011,2281.1,2280.3,2.31679667]
[1770110825193,0.0011,2281.1,2280.4,1.76649944]
[1770110826617,0.0011,2280.9,2280.4,1.76649944]
[1770110826921,12.2900027,2280.8,2280.3,0.001]
[1770110827101,12.2900027,2280.8,2280.4,1.09629136]
[1770110827306,0.0011,2280.9,2280.3,0.001]
[1770110832535,0.0011,2280.9,2280.4,3.83]
[1770110833541,12.2911027,2280.9,2280.1,0.001]
[1770110833724,12.2900027,2280.7,2280.1,0.001]
[1770110836636,13.38615803,2280.7,2280.1,0.001]
[1770110837832,12.2900027,2280.7,2280.1,0.001]
[1770110838032,12.89975306,2280.8,2280.1,0.001]
[1770110838417,2.32525306,2280.8,2280.1,0.001]
[1770110838612,0.23263531,2280.7,2280.1,0.001]
[1770110838843,1.09716042,2280.9,2280.1,0.001]
[1770110839040,0.0011,2280.9,2280.1,0.001]
[1770110839432,0.0011,2280.9,2280.3,0.001]
[1770110841355,11.89582506,2280.8,2280.3,0.001]
[1770110841524,11.89582506,2280.8,2280.0,0.001]
[1770110841842,1.13392908,2280.3,2279.5,0.001]
[1770110842142,12.81482506,2280.2,2279.5,0.001]
[1770110842340,12.80311765,2280.1,2279.5,0.001]
[1770110842518,11.89582506,2280.1,2279.5,0.001]
[1770110842723,1.28148251,2280.0,2279.5,0.001]
[1770110844055,2.37799892,2280.0,2279.5,0.001]
[1770110844211,14.27382398,2280.0,2278.9,1.09702049]
[1770110844639,14.27382398,2280.0,2278.8,1.09705656]
[1770110845015,11.89582506,2279.8,2278.7,1.09711366]
[1770110845212,11.89582506,2279.6,2278.7,1.09711366]
[1770110845409,10.5745,2279.4,2278.7,1.09709459]
[1770110845633,10.5745,2279.4,2278.8,1.09706841]
[1770110845833,10.5745,2279.4,2278.3,0.0008]
[1770110845834,11.89582506,2279.3,2278.3,0.0008]
[1770110846034,11.89582506,2279.3,2277.9,0.87174519]
[1770110846035,11.89582506,2279.1,2277.9,0.87174519]
[1770110846231,11.89582506,2278.9,2277.9,0.87174519]
[1770110846439,11.89582506,2278.8,2277.9,0.87174519]
[1770110846647,11.89582506,2278.6,2277.9,0.87174519]
[1770110847151,0.22830344,2277.1,2276.4,1.09822526]
[1770110847641,11.89582506,2278.0,2276.4,13.58172098]
[1770110847843,12.99328192,2278.0,2276.6,1.09812878]
[1770110848017,0.919,2278.1,2276.6,13.5816245]
[1770110848221,0.919,2278.2,2276.6,13.5816245]
[1770110849328,11.89582506,2278.1,2276.6,13.5816245]
[1770110849734,12.99323309,2278.1,2276.6,1.09812878]
[1770110849935,11.89582506,2277.9,2276.7,0.72881906]
[1770110850342,10.5745,2277.7,2276.6,1.09812878]
[1770110850542,22.47032506,2277.7,2276.6,1.09812878]
[1770110850744,10.5745,2277.7,2276.6,1.09812878]
[1770110851426,10.5745,2277.8,2276.6,1.09812878]
[1770110851829,10.5745,2277.8,2276.6,13.5826245]
[1770110852029,10.5745,2277.8,2276.7,1.97726864]
[1770110852544,10.5745,2278.3,2276.7,15.38076436]
[1770110852928,11.67180939,2278.3,2276.7,15.38076436]
[1770110853239,11.89582506,2278.2,2276.7,2.89726864]
[1770110853438,10.5745,2277.9,2276.7,0.92]
[1770110853639,11.89582506,2277.8,2276.6,1.09912878]
[1770110853842,10.5745,2277.9,2276.6,13.5826245]
[1770110854449,10.5745,2278.1,2276.6,13.5826245]
[1770110854649,12.93126654,2278.1,2276.7,14.46076436]
[1770110854852,10.5745,2278.1,2276.7,14.46076436]
[1770110855345,10.5745,2278.4,2276.7,14.46076436]
[1770110855517,10.5745,2278.4,2276.9,12.48349572]
[1770110855718,11.74167159,2278.4,2277.1,1.09788766]
[1770110856045,10.5745,2278.4,2277.1,13.58138338]
[1770110856430,25.67713467,2278.7,2277.1,13.58138338]
[1770110857440,10.5745,2278.5,2277.1,13.58138338]
[1770110858444,14.00551757,2278.7,2277.1,13.58138338]
[1770110858819,2.10969251,2278.7,2277.2,12.48349572]
[1770110859028,10.5745,2278.8,2277.4,12.48349572]
[1770110859248,11.67158479,2278.8,2277.4,12.48349572]
[1770110859448,11.89582506,2278.7,2277.3,2.19954706]
[1770110859748,11.89582506,2278.7,2277.2,13.40349572]
[1770110860348,11.89582506,2278.7,2277.3,1.09779124]
[1770110860950,12.99296298,2278.7,2277.3,1.09779124]
[1770110861316,10.5745,2278.3,2277.3,1.09779124]
[1770110862029,22.47032506,2278.3,2277.3,1.09779124]
[1770110862228,12.99323079,2278.1,2277.1,1.09788766]
[1770110862437,22.47032506,2278.0,2277.1,1.09788766]
[1770110862642,22.47032506,2278.0,2277.0,5.63990022]
[1770110862643,12.81582506,2277.9,2277.0,1.09790053]
[1770110862842,12.81582506,2277.9,2276.9,1.09794168]
[1770110863046,11.89582506,2277.7,2277.0,1.09793052]
[1770110863427,22.47032506,2277.7,2276.9,1.09796245]
[1770110863628,10.5745,2277.7,2276.9,6.09794959]
[1770110863827,10.5745,2277.7,2277.0,1.09793216]
[1770110864042,10.5745,2277.7,2277.0,1.09792892]
[1770110864233,11.72395,2277.7,2276.6,0.001]
[1770110864440,11.72395,2277.7,2276.8,5.0]
[1770110864441,1.14945,2277.7,2276.8,5.0]
[1770110864626,2.24705381,2277.7,2276.8,5.0]
[1770110864946,2.24705381,2277.7,2276.6,0.001]
[1770110864947,14.14287887,2277.7,2276.6,0.001]
[1770110865252,14.14287887,2277.7,2276.7,5.0]
[1770110865545,10.5745,2277.4,2276.8,0.5001]
[1770110865744,10.5745,2277.4,2276.9,0.001]
[1770110866534,10.5745,2277.6,2276.9,0.001]
[1770110867045,10.5745,2277.6,2276.9,5.001]
[1770110867634,11.89582506,2277.5,2276.9,0.001]
[1770110867839,14.14285757,2277.4,2276.6,0.001]
[1770110868026,0.92,2277.3,2276.6,5.001]
[1770110868352,0.92,2277.3,2276.7,1.09808055]
[1770110868747,0.92,2277.3,2276.8,5.0]
[1770110869350,5.5745,2277.5,2276.7,13.58157627]
[1770110869540,5.45082967,2277.5,2276.8,1.79750316]
[1770110870248,5.45082967,2277.5,2276.7,1.09808055]
[1770110870451,10.5745,2277.8,2276.7,1.09808055]
[1770110871336,10.5756,2277.9,2276.7,1.09808055]
[1770110873664,10.5745,2277.8,2276.7,1.09808055]
[1770110873875,10.5745,2277.8,2276.8,0.64115358]
[1770110874163,12.81445354,2277.7,2276.8,0.64115358]
[1770110874342,10.5745,2277.6,2276.8,0.64115358]
[1770110875061,10.5745,2277.6,2276.9,1.0979841]
[1770110875481,0.0011,2277.9,2276.9,1.0979841]
[1770110875482,10.5745,2277.8,2276.9,1.0979841]
[1770110875643,14.30288436,2278.5,2276.9,1.0979841]
[1770110875644,13.91147873,2278.9,2277.3,6.13991442]
[1770110875842,5.87576078,2279.3,2277.2,8.41408723]
[1770110875843,12.81445354,2279.3,2277.4,7.05991442]
[1770110876145,0.71667376,2279.6,2277.8,6.13991442]
[1770110876382,12.81445354,2279.7,2277.8,7.16111608]
[1770110876635,14.09605889,2279.7,2278.0,6.13991442]
[1770110876853,15.19269804,2279.7,2278.0,6.13991442]
[1770110877034,13.91118527,2279.5,2278.0,1.0974539]
[1770110879870,12.81445354,2279.2,2278.0,1.0974539]
[1770110880172,14.09600889,2279.1,2278.1,0.70447899]
[1770110881056,14.09600889,2279.1,2278.2,1.09735756]
[1770110881253,15.19294254,2279.1,2278.1,1.8018506]
[1770110881472,15.19294254,2279.1,2278.1,1.09737161]
[1770110882561,15.19293974,2279.1,2278.1,1.09737161]
[1770110883273,15.19293504,2279.1,2277.9,4.38962293]
[1770110885182,12.81445354,2279.0,2277.9,4.38962293]
[1770110886293,12.81445354,2278.8,2277.0,0.61310741]
[1770110886450,12.81445354,2278.6,2276.9,1.09898223]
[1770110886655,12.81445354,2278.4,2277.1,1.0978834]
[1770110886856,12.81445354,2278.2,2277.1,1.0978834]
[1770110887159,12.81445354,2278.2,2276.9,0.001]
[1770110887160,12.81445354,2278.0,2276.9,0.001]
[1770110887359,12.81445354,2278.0,2276.7,1.09808055]
[1770110888157,12.81445354,2277.8,2276.6,1.4005218]
[1770110888353,12.81445354,2277.6,2276.6,1.97994926]
[1770110888766,13.73445354,2278.0,2276.6,1.97994926]
[1770110889387,12.81445354,2277.8,2276.6,1.97994926]
[1770110890763,12.81445354,2277.6,2276.6,1.97994926]
[1770110891285,13.91193667,2278.0,2276.6,1.97994926]
[1770110891487,14.64461019,2277.9,2276.7,0.63726509]
[1770110893091,14.64461019,2277.9,2276.8,0.001]
[1770110893264,12.81445354,2277.7,2276.6,0.30241124]
[1770110893583,12.81445354,2277.7,2276.4,0.001]
[1770110893791,12.81445354,2277.5,2276.5,0.001]
[1770110894088,12.81445354,2277.3,2276.5,0.001]
[1770110894692,12.81445354,2277.3,2276.4,0.001]
[1770110894987,12.81445354,2277.3,2276.3,0.0008]
[1770110895388,12.81445354,2277.1,2276.3,0.0008]
[1770110895583,12.81445354,2276.9,2276.3,0.0008]
[1770110896424,12.81445354,2276.9,2275.8,0.003]
[1770110896969,12.81445354,2276.9,2275.6,0.0008]
[1770110897373,12.81445354,2276.7,2275.6,0.0008]
[1770110897571,12.81445354,2276.5,2275.6,0.0008]
[1770110898694,12.81445354,2276.5,2275.2,0.003]
[1770110898996,12.81445354,2276.3,2275.2,0.003]
[1770110899494,1.09832176,2276.2,2275.2,0.003]
[1770110899695,12.81445354,2276.1,2275.2,0.003]
[1770110899867,1.37147117,2276.6,2275.2,6.44395004]
[1770110900067,13.9124432,2276.9,2275.3,7.08534504]
[1770110900289,13.9124432,2276.9,2275.3,0.644395]
[1770110900996,13.9124432,2276.9,2275.2,0.003]
[1770110902392,12.61573686,2276.7,2275.2,0.003]
[1770110903488,12.61573686,2276.5,2275.2,0.003]
[1770110904720,12.61573686,2276.1,2274.5,1.09913737]
[1770110904867,12.61573686,2275.9,2274.9,1.09892816]
[1770110905280,12.61573686,2275.9,2274.9,1.09894889]
[1770110905506,13.71425166,2275.8,2274.6,1.09909434]
[1770110905702,12.61573686,2275.8,2274.6,1.09909434]
[1770110905901,14.63408836,2276.2,2274.6,1.09909434]
[1770110906104,1.90272235,2276.1,2274.7,0.6045229]
[1770110906310,13.71386564,2276.6,2274.7,15.11404585]
[1770110906616,14.63486564,2276.6,2274.7,15.11404585]
[1770110906897,13.44494052,2277.0,2275.4,0.001]
[1770110907106,0.0011,2276.7,2275.4,0.001]
[1770110907268,12.61683686,2276.7,2275.4,0.001]
[1770110907470,13.71391388,2276.5,2275.4,0.001]
[1770110907717,12.61573686,2276.3,2275.4,0.001]
[1770110907873,1.26168369,2276.6,2275.4,0.001]
[1770110908200,1.09918738,2276.7,2275.4,0.001]
[1770110908387,0.0011,2276.7,2275.4,0.001]
[1770110908586,13.71491775,2276.7,2275.4,0.001]
[1770110908793,13.7149198,2276.7,2275.4,0.001]
[1770110909901,13.53673686,2276.6,2275.4,0.001]
[1770110910204,12.61573686,2276.4,2275.4,0.001]
[1770110910697,1.46359198,2276.5,2275.4,0.001]
[1770110910907,0.921,2276.6,2275.4,0.001]
[1770110911437,14.6359198,2276.7,2275.4,0.001]
[1770110914416,0.0011,2276.9,2275.6,7.79194309]
[1770110914580,0.0011,2276.9,2275.6,14.50842295]
[1770110914780,0.0011,2276.9,2275.7,6.71647986]
[1770110915105,1.39120038,2277.6,2276.1,14.50572295]
[1770110915303,12.61573686,2277.9,2276.1,6.71377986]
[1770110915613,13.713246,2277.9,2276.1,6.71377986]
[1770110915824,13.713246,2277.9,2276.1,14.50572295]
[1770110915998,13.71323978,2277.9,2276.2,7.81210162]
[1770110916399,12.61573686,2277.9,2276.2,7.81210162]
[1770110916606,1.37132259,2277.8,2276.3,8.71351304]
[1770110917121,1.09742647,2278.1,2276.3,8.71351304]
[1770110917927,12.61573686,2277.8,2276.4,1.09822526]
[1770110920016,13.71333531,2277.7,2276.4,1.09822526]
[1770110920723,13.71333531,2277.7,2276.5,10.23]
[1770110921794,13.71443531,2277.7,2276.5,10.23]
[1770110921995,1.81046434,2277.6,2276.7,1.09808055]
[1770110922225,1.81046434,2277.6,2276.7,4.92808055]
[1770110922408,2.90811908,2277.6,2276.7,4.92808055]
[1770110922612,1.81046434,2277.6,2276.7,4.92808055]
[1770110922798,2.90815302,2277.6,2276.7,4.92808055]
[1770110922999,1.99154187,2277.5,2276.7,7.0526353]
[1770110924922,13.71443731,2277.7,2276.7,7.0526353]
[1770110925240,13.71443604,2277.7,2276.7,7.0526353]
[1770110925894,13.71443604,2277.7,2276.7,3.83]
[1770110926098,13.71443604,2277.7,2276.7,4.92807807]
[1770110926294,13.71443604,2277.7,2276.8,3.83]
[1770110926498,13.71443604,2277.7,2276.6,1.09812598]
[1770110926698,13.71443604,2277.7,2276.5,1.09814053]
[1770110927007,13.71443604,2277.7,2276.6,1.09810627]
[1770110927008,12.61573686,2277.5,2276.6,1.09810627]
[1770110927212,12.61573686,2277.5,2276.5,1.0981463]
[1770110927732,12.61573686,2277.5,2276.4,4.39288886]
[1770110927733,12.61573686,2277.5,2276.6,1.09812383]
[1770110928319,13.7134799,2277.4,2276.3,0.001]
[1770110928935,1.81046468,2277.6,2276.3,0.001]
[1770110929108,12.61573686,2277.5,2276.3,1.22163674]
[1770110929295,12.61573686,2277.5,2276.3,0.001]
[1770110929827,13.53573686,2277.5,2276.3,0.001]
[1770110930202,12.09428904,2277.3,2276.3,0.001]
[1770110932005,13.01428904,2277.3,2276.3,0.001]
[1770110932211,12.09015908,2277.1,2276.3,0.001]
[1770110932541,12.09015908,2276.9,2276.0,0.001]
[1770110934456,12.09015908,2276.7,2276.0,0.001]
[1770110935819,12.09015908,2276.7,2276.2,0.001]
[1770110936443,1.09812878,2276.6,2276.2,0.001]
[1770110936647,13.18828786,2276.6,2276.2,0.001]
[1770110936953,13.18828786,2276.6,2275.6,1.25954769]
[1770110936954,13.94022868,2276.5,2275.6,1.25954769]
[1770110937113,13.94022868,2276.5,2275.6,0.16093945]
[1770110937518,13.94022868,2276.5,2275.6,1.25954404]
[1770110937742,13.94022868,2276.5,2275.6,1.25954114]
[1770110937943,1.50383575,2276.4,2275.6,1.25954114]
[1770110938145,13.59399483,2276.4,2275.6,0.16093945]
[1770110939117,1.09827351,2276.3,2275.6,0.16093945]
[1770110939533,13.18843259,2276.3,2275.6,0.16093945]
[1770110940563,12.09015908,2276.3,2275.6,1.25954222]
[1770110940722,13.18915043,2277.1,2275.7,0.56541794]
[1770110940919,12.09125908,2277.1,2275.7,0.56541794]
[1770110941425,13.18917167,2277.1,2275.8,1.0985148]
[1770110941931,13.18914968,2277.1,2275.8,1.0985148]
[1770110942126,14.60027465,2277.1,2275.9,0.6057992]
[1770110943445,14.60027465,2277.1,2275.9,1.09842991]
[1770110944329,14.59588465,2277.1,2275.9,1.09842991]
[1770110945548,13.49799405,2277.1,2275.7,1.09856307]
[1770110945755,12.08686908,2277.1,2275.7,1.09856307]
[1770110946428,12.08686908,2277.1,2275.9,7.79194309]
[1770110946629,0.0011,2277.3,2275.9,15.43301295]
[1770110946823,0.0011,2277.3,2275.9,8.71294309]
[1770110947025,12.09125908,2277.3,2275.9,8.71294309]
[1770110947226,12.09125908,2277.3,2276.0,0.87129431]
[1770110947427,12.09125908,2277.3,2275.9,0.921]
[1770110947627,13.18905681,2277.3,2276.0,1.09841827]
[1770110947851,12.09125908,2277.3,2276.0,1.09841827]
[1770110948636,13.18905284,2277.3,2276.0,1.09841827]
[1770110948839,13.18906313,2277.3,2276.1,0.001]
[1770110949041,0.0011,2277.1,2276.1,0.64240914]
[1770110949751,0.0011,2277.1,2276.2,1.09832176]
[1770110953355,0.0011,2277.3,2276.2,1.09832176]
[1770110954471,12.09125908,2277.3,2276.2,1.09832176]
[1770110956550,13.18905744,2277.3,2276.2,1.09832176]
[1770110956729,12.09015908,2277.1,2276.2,1.09832176]
[1770110957867,12.09015908,2277.1,2276.1,1.74074348]
[1770110958068,12.09015908,2277.1,2276.1,1.09936138]
[1770110958069,12.09015908,2276.9,2276.1,1.09936138]
[1770110959135,12.09015908,2276.9,2276.1,0.001]
[1770110959642,12.09015908,2276.9,2276.1,1.09935223]
[1770110959841,13.50096691,2276.9,2276.1,1.64863867]
[1770110960042,14.59898144,2276.9,2276.1,1.64863867]
[1770110960250,15.20123044,2277.2,2276.1,1.64863867]
[1770110960451,14.10338725,2277.2,2276.1,1.64863867]
[1770110961844,12.34536501,2277.2,2276.1,1.64863867]
[1770110962251,0.0011,2277.0,2276.1,1.64863867]
[1770110962775,12.34646501,2277.0,2276.1,1.64863867]
[1770110965758,0.0011,2277.0,2276.1,1.64863867]
[1770110966966,0.0011,2277.2,2276.1,1.64863867]
[1770110967174,0.0011,2277.2,2276.2,0.60421509]
[1770110968255,0.0011,2277.2,2276.3,1.09827351]
[1770110969574,0.0011,2277.2,2276.4,0.92]
[1770110970184,0.0011,2277.9,2276.8,12.4964786]
[1770110970475,0.0011,2277.9,2276.9,13.85593452]
[1770110971452,0.0011,2277.9,2276.9,1.35945592]
[1770110971651,12.34646501,2277.9,2276.7,1.09808055]
[1770110972555,13.44399459,2277.9,2276.6,4.39232222]
[1770110973254,0.92,2277.8,2276.6,1.09812878]
[1770110973582,12.34536501,2277.7,2276.6,1.09812878]
[1770110974487,1.09862958,2277.9,2276.6,1.09812878]
[1770110974488,0.0011,2277.9,2276.6,12.4964786]
[1770110974793,0.0011,2278.3,2276.8,12.4964786]
[1770110975155,0.0011,2278.3,2277.1,12.4964786]
[1770110976668,0.0011,2278.3,2277.2,1.09783945]
[1770110976981,0.0011,2278.3,2277.2,13.59431805]
[1770110976982,0.0011,2278.1,2277.2,13.59431805]
[1770110977187,0.0011,2278.3,2277.3,14.29504619]
[1770110978480,0.0011,2278.3,2277.3,1.79856759]
[1770110978683,12.34646501,2278.3,2277.1,4.3913578]
[1770110979003,13.44379357,2278.3,2277.1,4.3913578]
[1770110980581,12.34536501,2278.1,2277.0,0.33885243]
[1770110980911,12.34536501,2277.9,2277.0,1.43678647]
[1770110981064,13.6896469,2277.8,2277.0,1.43678653]
[1770110981386,13.6896469,2277.8,2276.6,1.09812762]
[1770110981688,13.6896469,2277.8,2276.7,1.09806688]
[1770110981890,13.6896469,2277.8,2276.6,1.0981039]
[1770110982086,13.6896469,2277.8,2276.7,1.09806568]
[1770110982284,12.34536501,2277.6,2276.7,1.09806568]
[1770110982486,12.34536501,2277.6,2276.6,1.09809288]
[1770110982659,12.34536501,2277.6,2276.2,4.99748745]
[1770110982660,12.34536501,2277.4,2276.2,1.09827802]
[1770110982869,1.36896469,2277.7,2276.2,1.09827802]
[1770110982870,13.44304321,2277.6,2276.2,1.09827802]
[1770110984598,0.92,2277.7,2276.2,1.09827802]
[1770110984909,0.0011,2278.3,2276.5,12.4964786]
[1770110985107,13.41272257,2278.2,2276.5,12.4964786]
[1770110985407,13.41272257,2278.2,2276.6,1.34164786]
[1770110985408,12.34536501,2278.0,2276.6,1.34164786]
[1770110985575,12.34536501,2278.0,2276.4,0.92]
[1770110985778,12.34536501,2278.0,2276.4,13.4164786]
[1770110987205,13.44286709,2277.9,2276.5,1.09817702]
[1770110989083,13.44286709,2277.9,2276.6,0.001]
[1770110989283,13.44296346,2277.7,2276.6,0.001]
[1770110989595,12.34536501,2277.5,2276.6,0.001]
[1770110991198,11.81173829,2277.3,2276.4,0.001]
[1770110993292,1.09783945,2277.2,2276.4,0.001]
[1770110993809,13.70007013,2277.2,2276.4,0.001]
[1770110994028,1.80914279,2277.1,2276.4,0.001]
[1770110994226,14.41137347,2277.1,2275.6,0.003]
[1770110994391,12.60223068,2276.9,2275.1,1.09881969]
[1770110994584,12.60223068,2276.9,2275.0,4.39847928]
[1770110994585,13.71976338,2276.7,2275.0,0.003]
[1770110994914,12.60223068,2276.5,2275.3,1.09875255]
[1770110995115,12.60223068,2276.3,2275.3,1.09875255]
[1770110995293,13.70055244,2276.2,2275.0,0.003]
[1770110995500,0.92,2276.1,2275.0,0.003]
[1770110995698,1.46205524,2276.0,2275.0,0.003]
[1770110996616,0.92,2276.1,2275.0,0.003]
[1770110997386,2.01840142,2276.1,2275.0,0.003]
[1770110997817,0.92,2276.1,2275.0,0.003]
[1770110998000,2.01838264,2276.1,2275.0,0.003]
[1770110998202,0.92,2276.1,2275.0,0.003]
[1770110998401,1.46205838,2276.0,2275.0,0.5531547]
[1770110999302,1.46205838,2276.0,2275.1,1.09885279]
[1770111000755,63.4469,2280.0,2275.1,1.09885279]
[1770111000756,2.90704358,2277.1,2275.8,12.0600819]
[1770111001031,13.70016285,2277.1,2275.4,12.9810819]
[1770111001231,12.60223068,2276.9,2275.4,0.921]
[1770111001391,13.70035658,2276.7,2275.1,1.09885279]
[1770111002831,1.35232307,2276.8,2275.3,12.0600819]
[1770111003030,1.49560775,2277.8,2275.3,12.0610819]
[1770111003031,1.0977934,2277.3,2275.3,12.0610819]
[1770111003220,12.60223068,2277.9,2275.8,12.0600819]
[1770111003545,4.39085601,2278.1,2275.8,12.0600819]
[1770111003546,0.0011,2278.1,2276.3,12.0600819]
[1770111003833,0.0011,2277.5,2276.5,12.0600819]
[1770111003989,0.0011,2277.5,2276.6,1.26008452]
[1770111004599,0.0011,2277.5,2276.4,12.9810819]
[1770111004798,0.0011,2277.5,2276.4,13.52184515]
[1770111004997,0.0011,2278.1,2277.1,20.49825098]
[1770111005242,0.0011,2278.3,2277.2,0.54076325]
[1770111005455,0.0011,2278.3,2277.2,1.09783945]
[1770111005659,0.0011,2278.3,2277.3,1.75492792]
[1770111006227,0.0011,2278.9,2277.3,13.86469598]
[1770111006722,1.09812155,2278.9,2277.3,13.86469598]
[1770111006919,0.0011,2278.9,2277.3,13.86469598]
[1770111007159,1.09812199,2278.9,2277.3,13.86469598]
[1770111007355,0.0011,2278.9,2277.3,13.86469598]
[1770111007534,0.0011,2278.9,2277.4,1.09774304]
[1770111008350,0.0011,2278.9,2277.4,13.15782494]
[1770111008932,0.0011,2278.9,2277.6,20.49825098]
[1770111009129,0.0011,2278.9,2277.5,2.47610437]
[1770111009130,12.60333068,2278.9,2277.5,1.93534112]
[1770111009322,12.60333068,2278.9,2277.4,1.09774304]
[1770111009654,13.70036173,2278.9,2277.6,1.09764664]
[1770111010521,12.60333068,2278.9,2277.6,1.09764664]
[1770111010854,0.0011,2278.9,2277.6,1.09764664]
[1770111011023,12.60333068,2278.9,2277.6,1.09764664]
[1770111011222,1.3700338,2278.8,2277.7,0.64082332]
[1770111011646,1.3700338,2278.8,2277.8,1.09755026]
[1770111013552,12.60223068,2278.7,2277.8,1.09755026]
[1770111013721,12.60223068,2278.6,2277.6,1.09764664]
[1770111014065,0.0011,2278.9,2277.6,2.17755015]
[1770111014249,1.09812812,2278.9,2277.6,2.17755015]
[1770111014450,13.7003588,2278.9,2277.6,2.17755015]
[1770111015930,13.7003588,2278.9,2277.6,1.09764664]
[1770111016461,12.60333068,2278.6,2277.6,1.09764664]
[1770111017032,13.52333068,2278.6,2277.3,5.36178849]
[1770111017219,13.52333068,2278.6,2277.5,1.09768539]
[1770111017840,13.69944375,2278.5,2277.4,1.09774304]
[1770111018046,14.50317029,2278.4,2277.4,1.09774304]
[1770111018660,14.50317029,2278.4,2277.3,1.1484711]
[1770111019957,1.09730939,2278.3,2277.3,1.1484711]
[1770111020137,15.60045678,2278.4,2277.3,1.1484711]
[1770111020931,15.60043235,2278.4,2277.3,1.1484711]
[1770111021138,14.37626712,2278.3,2277.4,0.55398263]
[1770111021534,1.56004324,2278.3,2277.4,0.55398263]
[1770111021760,2.99820952,2278.4,2277.4,0.55398263]
[1770111021955,2.99820952,2278.4,2277.5,1.09769484]
[1770111022358,15.8144334,2278.4,2277.5,1.09769484]
[1770111022560,14.71716349,2278.4,2277.5,1.09769484]
[1770111022736,15.81443216,2278.4,2277.5,1.09769484]
[1770111022938,1.58144322,2278.3,2277.5,1.09769484]
[1770111023150,13.91349616,2278.4,2277.5,1.09769484]
[1770111023574,13.91349616,2278.4,2275.8,12.21442754]
[1770111023575,12.81622388,2277.4,2275.8,12.21442754]
[1770111023749,1.50116136,2277.3,2276.1,1.09934613]
[1770111023950,2.59898386,2277.3,2276.1,0.001]
[1770111024146,1.50116136,2277.3,2276.1,0.001]
[1770111024357,2.59895822,2277.3,2276.1,0.001]
[1770111024562,2.07263471,2277.2,2276.1,0.001]
[1770111024761,1.09765574,2277.6,2276.2,7.78403868]
[1770111024950,13.91387962,2277.6,2276.1,12.21542754]
[1770111025766,13.91387962,2277.6,2276.1,0.001]
[1770111028982,13.91387962,2277.6,2275.5,0.34126161]
[1770111028983,12.81622388,2277.4,2275.5,0.34126161]
[1770111029182,12.81622388,2277.0,2275.8,1.09850647]
[1770111029345,12.81622388,2276.8,2275.8,1.09851267]
[1770111029944,12.81622388,2276.8,2276.0,0.001]
[1770111030144,13.91428255,2276.8,2276.0,0.001]
[1770111031074,12.81622388,2276.8,2276.0,0.001]
[1770111031258,15.28788241,2276.8,2276.0,0.001]
[1770111031599,0.92,2276.9,2276.0,0.001]
[1770111031777,12.81622388,2277.7,2276.0,12.21542754]
[1770111031946,1.61203707,2278.4,2276.0,12.21542754]
[1770111031947,12.81622388,2278.2,2276.5,12.21442754]